Cogmind - Beta 13 @@@ ROGUE MODE // 2024.07.08 @ 18:34:02 Player: ThatBishHoly Result: Destroyed by S-10 Pest with Light Assault Rifle Performance ------------- Evolutions (2) 1000 Regions Visited (4) 800 Robots Destroyed (36) 180 Value Destroyed (952) 952 Prototype IDs (0) 0 Alien Tech Used (0) 0 Bonus (16) 16 TOTAL SCORE: 2948 Bonus ------- High Alert Combat Kills 16 Cogmind --------- Core Integrity 0/550 Matter 290/300 Energy 97/100 System Corruption 0% Temperature Cool (0) Movement Core (50) Location -8/Materials Parts ------- > --- POWER (1) -------- (None) > --- PROPULSION (4) --- (None) > --- UTILITY (4) ------ (None) > --- WEAPON (2) ------- Heavy Mace > --- INVENTORY (5) ---- Light Ion Engine Advanced Weight Redist. System Signal Interpreter ECM Suite Flail Peak State ------------ > --- POWER ------------ Nuclear Core > --- PROPULSION ------- Light Treads Light Treads Light Treads Light Treads > --- UTILITY ---------- Small Storage Unit Compact Matter Pod Sensor Array Light Armor Plating > --- WEAPON ----------- Particle Cannon Autogun > --- INVENTORY -------- Cooling System Advanced Weight Redist. System Signal Interpreter ECM Suite Particle Cannon Flail [Rating: 18] Favorites ----------- Power Light Ion Engine Engine Light Ion Engine Power Core Nuclear Core Propulsion Light Treads Treads Light Treads Leg Aluminum Leg Flight Unit Flight Unit Utility Small Storage Unit Device Sensor Array Storage Small Storage Unit Protection Light Armor Plating Weapon Autogun Energy Gun EM Pulse Gun Energy Cannon Particle Cannon Ballistic Gun Autogun Impact Weapon Flail Build | -11 -10 -10 -9 -8 ------- Run | Yrd Mat Min Mat Mat Slots Evolved 4 | . . . 2 2 Power . | . . . . . Propulsion 2 | . . . 1 1 Utility 2 | . . . 1 1 Weapon . | . . . . . Parts Attached 40 | 7 3 . 12 18 Power 5 | 1 . . 2 2 Engine 3 | 1 . . 2 . Core 2 | . . . . 2 Reactor . | . . . . . Propulsion 18 | 3 . . 8 7 Treads 10 | 2 . . 4 4 Leg 5 | 1 . . 4 . Wheel . | . . . . . Hover . | . . . . . Flight 3 | . . . . 3 Utility 8 | 1 1 . 1 5 Device 3 | . . . 1 2 Storage 3 | 1 1 . . 1 Processor . | . . . . . Hackware . | . . . . . Protection 2 | . . . . 2 Artifact . | . . . . . Weapon 9 | 2 2 . 1 4 Energy Gun 1 | 1 . . . . Energy Cannon 2 | . . . . 2 Ballistic Gun 4 | 1 2 . . 1 Ballistic Cannon . | . . . . . Launcher . | . . . . . Special Weapon . | . . . . . Impact Weapon 2 | . . . 1 1 Slashing Weapon . | . . . . . Piercing Weapon . | . . . . . Special Melee Weapon . | . . . . . Unidentified Prototypes . | . . . . . Parts Lost 18 | . . . 2 16 Power 3 | . . . 1 2 Propulsion 8 | . . . 1 7 Utility 4 | . . . . 4 Weapon 3 | . . . . 3 Highest Loss Streak 9 | . . . 2 9 To Critical Strikes . | . . . . . Average Slot Usage (%) 88 | . 91 100 89 71 Engine 10 | . 14 14 10 . Core 1 | . . . . 6 Treads 24 | . 28 28 19 21 Leg 1 | . . . 8 . Device 3 | . . . 6 8 Storage 20 | . 19 28 22 14 Protection 1 | . . . . 5 Energy Gun 2 | . 7 . . . Ballistic Gun 18 | . 20 28 17 6 Impact Weapon 1 | . . . 4 4 Naked Turns 21 | . . . . 21 Heaviest Build 24 | 12 17 17 21 24 Greatest Support 80 | 40 40 40 60 80 Greatest Overweight (x) 3 | . . . 1 3 Average Overweight (x) . | . . . . . Largest Inventory Capacity 8 | 8 8 8 8 8 Average Capacity 7 | 7 8 8 8 7 Most Carried 8 | 5 7 6 8 8 Average Carried 5 | . 3 6 7 6 Final Capacity 8 | 8 8 8 8 5 Final Carried 8 | . 6 6 8 5 Class Distribution -------------------- 74% | Mutant 25% | Scavenger-Mutant Dominant Class ---------------- Mutant | -10/Materials Mutant | -10/Mines Scavenger-Mutant | -9/Materials Scavenger-Mutant | -8/Materials Resources | -11 -10 -10 -9 -8 ----------- Run | Yrd Mat Min Mat Mat Matter Collected 1246 | 160 129 228 513 216 Remotely . | . . . . . Salvage Created 1236 | . 129 228 545 334 Parts 87 | . 14 8 34 31 Haulers Intercepted 1 | . 1 . . . Recyclers Shooed 2 | . . . 2 . Parts Field Recycled . | . . . . . Retrieved Matter . | . . . . . Parts Self-Destructed . | . . . . . Prevented . | . . . . . Kills | -11 -10 -10 -9 -8 ------- Run | Yrd Mat Min Mat Mat Combat Hostiles Destroyed 31 | . 6 7 10 8 Melee 1 | . . . . 1 Guns 27 | . 6 7 10 4 Cannons 3 | . . . . 3 Classes Destroyed 9 | . 2 1 4 2 Builder 2 | . . . . 2 Hauler 1 | . 1 . . . Recycler 1 | . . . 1 . Watcher 1 | . . . 1 . Swarmer 12 | . 6 3 . 3 Grunt 11 | . . 4 5 2 Brawler 2 | . . . 2 . Sentry 5 | . . . 3 2 Hunter 1 | . . . . 1 Best Kill Streak 5 | . 3 3 5 3 Combat Bots Only 4 | . 3 3 4 2 Max Kills in Single Turn 2 | . 2 2 1 2 Gunslinging 1 | . 1 1 . . Exploded . | . . . . . Melee 1 | . . . . 1 Uniques/NPCs Destroyed . | . . . . . Combat | -11 -10 -10 -9 -8 -------- Run | Yrd Mat Min Mat Mat Hostile Shots Fired 338 | . 16 37 42 243 Missed 82 | . 5 6 10 61 Damage Taken 3040 | . 95 384 450 2111 Core 726 | . 9 91 71 555 Absorbed by Shields . | . . . . . Core Remaining (%) 80 | 100 . 60 82 . Volleys Fired 115 | . 7 28 47 33 Largest 2 | . 2 2 2 2 Hottest 91 | . 60 46 46 91 Shots Fired 196 | . 14 56 71 55 Gun 173 | . 14 56 71 32 Cannon 23 | . . . . 23 Launcher . | . . . . . Special . | . . . . . Kinetic 166 | . 7 56 71 32 Thermal 23 | . . . . 23 Explosive . | . . . . . Electromagnetic 7 | . 7 . . . Robot Hit Streak 13 | . 3 12 10 13 Robot Miss Streak 4 | . 2 4 4 4 Penetration Max . | . . . . . Secondary Targets 4 | . 2 2 . . Max Gunslinging Chain 1 | . 1 1 . . Shots Hit Robots 128 | . 9 38 42 39 Core Hits 54 | . 8 12 19 15 Critical Kills . | . . . . . Critical Parts Destroyed 1 | . . . . 1 Critical Strikes 1 | . . . . 1 Smash 1 | . . . . 1 Melee Attacks 6 | . . . . 6 Impact 6 | . . . . 6 Slashing . | . . . . . Piercing . | . . . . . Sneak Attacks 1 | . . . . 1 Combat Hostiles . | . . . . . Follow-up Attacks . | . . . . . Damage Inflicted 2248 | . 128 625 640 855 Guns 1685 | . 128 613 640 304 Cannons 350 | . . . . 350 Explosions . | . . . . . Melee 201 | . . . . 201 Ramming 12 | . . 12 . . Kinetic 1623 | . 66 613 640 304 Thermal 350 | . . . . 350 Explosive . | . . . . . Electromagnetic 62 | . 62 . . . Impact 201 | . . . . 201 Slashing . | . . . . . Piercing . | . . . . . Highest Corruption . | . . . . . Average Corruption . | . . . . . Corruption Purged . | . . . . . Corruption Blocked . | . . . . . Overload Shots . | . . . . . Overflow Damage 66 | . . . . 66 Projectiles 1 | . . . . 1 Explosions . | . . . . . Melee 65 | . . . . 65 Knockbacks 2 | . . . . 2 Impact 2 | . . . . 2 Kinetic . | . . . . . Secondary . | . . . . . Self-Inflicted Damage . | . . . . . Shots . | . . . . . Rammed 3 | . . 3 . . Targets Rammed 3 | . . 3 . . Kicked . | . . . . . Crushed . | . . . . . Highest Temperature 290 | . . 63 27 290 Average Temperature 65 | . . 23 4 113 Received Heat Transfer 1011 | . . 189 165 657 Effects 1 | . . . . 1 Energy Bleed 1 | . . . . 1 Siege Activations . | . . . . . Robots Corrupted . | . . . . . Combat Hostiles . | . . . . . Parts Fried 2 | . . . . 2 Impact Corruptions 4 | . . . . 4 Robots Melted . | . . . . . Combat Hostiles . | . . . . . Parts Melted 1 | . . . . 1 Heat Transferred 629 | . . . . 629 Parts Sabotaged . | . . . . . Parts Stolen . | . . . . . Parts Stripped . | . . . . . Power Chain Reactions . | . . . . . Alert | -11 -10 -10 -9 -8 ------- Run | Yrd Mat Min Mat Mat Peak Influence 458 | . 169 175 458 301 Initial 124 | . . 5 68 124 Average 124 | . 60 108 225 168 Maximum Alert Level 2 | . . . 2 1 Low Security (%) 77 | 100 100 100 27 62 Level 1 22 | . . . 69 37 Level 2 . | . . . 3 . Level 3 . | . . . . . Level 4 . | . . . . . Level 5 . | . . . . . High Security . | . . . . . Max Security . | . . . . . Squads Dispatched 4 | . 1 . 2 1 Investigation 1 | . . . . 1 Extermination . | . . . . . Reinforcement 3 | . 1 . 2 . Assault . | . . . . . Garrison . | . . . . . Intercept . | . . . . . Searches Triggered . | . . . . . Construction Impeded . | . . . . . Haulers Reinforced . | . . . . . Active Scanning Responses . | . . . . . Cargo Convoy Interrupts . | . . . . . Stealth | -11 -10 -10 -9 -8 --------- Run | Yrd Mat Min Mat Mat Distress Signals 5 | . . . 3 2 Communications Jammed . | . . . . . Distress Signals . | . . . . . Times Spotted 49 | . 7 7 18 17 Peak Tracking Total 8 | . 3 3 6 8 Tactical Retreats 2 | . . . 2 . Traps | -11 -10 -10 -9 -8 ------- Run | Yrd Mat Min Mat Mat Traps Triggered 1 | . . . . 1 Indirectly . | . . . . . Trap Hack Attempts . | . . . . . Triggered . | . . . . . Disarmed . | . . . . . Reprogrammed . | . . . . . Reused . | . . . . . Traps Extracted . | . . . . . Installed . | . . . . . Triggered . | . . . . . Machines | -11 -10 -10 -9 -8 ---------- Run | Yrd Mat Min Mat Mat Machines Disabled 2 | . . . 2 . Max in Single Turn 1 | . . . 1 . Machines Repaired . | . . . . . Machines Dismantled . | . . . . . Machines Sabotaged . | . . . . . Overloaded Fab Kills . | . . . . . Hacking | -11 -10 -10 -9 -8 --------- Run | Yrd Mat Min Mat Mat Machines Accessed 3 | . 3 . . . Terminals 3 | . 3 . . . Fabricators . | . . . . . Repair Stations . | . . . . . Recycling Units . | . . . . . Scanalyzers . | . . . . . Garrison Access . | . . . . . Total Hacks 9 | . 9 . . . Successful 5 | . 5 . . . Failed 4 | . 4 . . . Catastrophic . | . . . . . Database Lockouts . | . . . . . Manual . | . . . . . Terminals 9 | . 9 . . . Fabricators . | . . . . . Repair Stations . | . . . . . Recycling Units . | . . . . . Scanalyzers . | . . . . . Garrison Access . | . . . . . Terminal Hacks 5 | . 5 . . . Record 2 | . 2 . . . Security Status 1 | . 1 . . . Patrol Status 1 | . 1 . . . Assault Status 1 | . 1 . . . Fabricator Hacks . | . . . . . Repair Station Hacks . | . . . . . Recycling Unit Hacks . | . . . . . Scanalyzer . | . . . . . Garrison Access Hacks . | . . . . . Unauthorized Hacks . | . . . . . Terminals . | . . . . . Fabricators . | . . . . . Repair Stations . | . . . . . Recycling Units . | . . . . . Scanalyzers . | . . . . . Garrison Access . | . . . . . Data Cores Recovered . | . . . . . Used . | . . . . . Hacking Detections 1 | . 1 . . . Full Trace Events . | . . . . . Feedback Events . | . . . . . Feedback Blocked . | . . . . . Robot Schematics Acquired . | . . . . . Robots Built . | . . . . . Authchips . | . . . . . Time . | . . . . . Total Robot Build Rating . | . . . . . Part Schematics Acquired . | . . . . . Parts Built . | . . . . . Authchips . | . . . . . Time . | . . . . . Total Part Build Rating . | . . . . . Parts Repaired . | . . . . . Time . | . . . . . Parts Recycled . | . . . . . Recycled Matter . | . . . . . Retrieved Matter . | . . . . . Retrieved Components . | . . . . . Parts Scanalyzed . | . . . . . Part Schematics Acquired . | . . . . . Parts Damaged . | . . . . . Bothacking | -11 -10 -10 -9 -8 ------------ Run | Yrd Mat Min Mat Mat Used RIF Installer . | . . . . . Robots Hacked . | . . . . . Non-combat . | . . . . . Combat . | . . . . . Robot Hacks Applied . | . . . . . Relay Couplers Released . | . . . . . Fabnet Peak Effective % . | . . . . . Robots Rewired . | . . . . . Allies Hacked . | . . . . . Hacks Repelled . | . . . . . Allies | -11 -10 -10 -9 -8 -------- Run | Yrd Mat Min Mat Mat Total Allies . | . . . . . Largest Group . | . . . . . Highest-Rated Group . | . . . . . Highest-Rated Ally . | . . . . . Total Orders . | . . . . . Ally Attacks . | . . . . . Total Damage . | . . . . . Kills . | . . . . . Allies Corrupted . | . . . . . Allies Melted . | . . . . . Intel | -11 -10 -10 -9 -8 ------- Run | Yrd Mat Min Mat Mat Robot Analysis Total . | . . . . . Derelict Logs Recovered 1 | . . 1 . . Drone Launches . | . . . . . Drone Recoveries . | . . . . . Exploration | -11 -10 -10 -9 -8 ------------- Run | Yrd Mat Min Mat Mat Turns Passed 2097 | 61 756 399 428 453 Spaces Moved 1151 | 43 444 200 206 258 Core 111 | 19 . . . 92 Treads 931 | 24 444 200 128 135 Legs 78 | . . . 78 . Wheels . | . . . . . Hover . | . . . . . Flight 31 | . . . . 31 Fastest Speed 37 | 50 160 160 120 37 Average Speed 147 | 111 160 160 145 121 Slowest Speed 240 | 160 160 160 240 200 Overloaded Moves . | . . . . . Propulsion Burnouts . | . . . . . Robots Hopped . | . . . . . Cave-ins Triggered . | . . . . . Exploration Rate (%) 22 | 4 36 37 19 17 Regions Visited 4 Branch Regions 1 Pre-discovered Areas . | . . . . . Known Exits Taken 1 | . . . 1 . Unknown Exits Taken 3 | 1 1 1 . . Scrap Searched . | . . . . . Spaces Dug . | . . . . . Terrain Destroyed . | . . . . . Melee . | . . . . . Projectile . | . . . . . AOE . | . . . . . Terrain Rammed . | . . . . . Walls Destroyed . | . . . . . Machines Disabled . | . . . . . Actions | -11 -10 -10 -9 -8 --------- Run | Yrd Mat Min Mat Mat Total 1378 | 56 475 233 277 337 Wait 19 | . 13 3 . 3 Move 1147 | 42 443 199 205 258 Hop . | . . . . . Pick Up 28 | 6 8 . 4 10 Fast Attach 14 | 1 . . 8 5 Attach 13 | 6 1 . . 6 Detach 2 | . . . . 2 Swap 13 | . 2 . 4 7 Drop 18 | 1 1 . 9 7 Fire 115 | . 7 28 47 33 Melee 6 | . . . . 6 Ram . | . . . . . Kick . | . . . . . Crush 3 | . . 3 . . Escape Stasis . | . . . . . Rewire . | . . . . . Trap . | . . . . . Miscellaneous . | . . . . . Route ------- -11/Scrapyard -10/Materials -10/Mines -9/Materials -8/Materials History --------- Turn | Location | Event 2 | -11/Scrapyard | Met Revision 17 3 | -11/Scrapyard | Discovered new exit (range 16) 62 | -11/Scrapyard | Entered Materials 141 | -10/Materials | Discovered new exit (range 5) 310 | -10/Materials | Build established: Mutant 818 | -10/Materials | Entered Mines 1090 | -10/Mines | Learned 2 Materials zone layouts 1200 | -10/Mines | Discovered new exit (range 8) 1217 | -10/Mines | Entered Materials 1217 | -9/Materials | Evolved 2 slots: Propulsion x1, Utility x1 1218 | -9/Materials | Identified exit to Materials 1645 | -9/Materials | Entered another Materials area 1645 | -8/Materials | Evolved 2 slots: Propulsion x1, Utility x1 1724 | -8/Materials | Build established: Scavenger-Mutant 2012 | -8/Materials | Core integrity fell below 50% 2018 | -8/Materials | Lost 9 parts (1p4n2u2w) 2060 | -8/Materials | Core integrity fell below 20% 2098 | -8/Materials | Destroyed by S-10 Pest with Light Assault Rifle Last Messages --------------- 02048_ Acquired 10 matter. 02050_ Acquired Flight Unit. 02051_ Acquired 10 matter. 02053_ Acquired Flight Unit. 02054_ R-06 Scavenger collects Flight Unit. 02056_ Flight Unit destroyed. 02056_ Acquired Flight Unit. 02058_ Acquired Lgt. Nuclear Core. 02059_ R-06 Scavenger collects Flight Unit. 02059_ Flight Unit destroyed. 02061_ Acquired 20 matter. 02063_ R-06 Scavenger collects Lgt. Assault Rifle. 02065_ U-05 Engineer builds a Door. 02071_ K-01 Serf collects debris. 02071_ Lgt. Nuclear Core destroyed. 02076_ Flight Unit destroyed. 02089_ K-01 Serf collects debris. 02093_ Acquired Hvy. Mace. 02096_ Destroyed Flight Unit. 02096_ S-10 Pest system corrupted by crushing effect. Map ----- +----------------------------------------------------+ | ????????# #?# #???????????? | | ????????# #?# #???????????? | | ????????# #?# #???????????? | | ????????## ##?# #???????????? | | ?????????# #??# #####???????? | | ?????????# #??# +???????? | | ?????????+ #??# #####???????? | | ?????????# #### #???????????? | | ?????????# # #???????????? | | ?????????? # ####???????????? | | ?????????????# #??????????????? | | ?????????????# #??????????????? | | ?????????????# #??????????????? | | ?????????????# #??????????????? | | ?????????????# #??????????????? | | ?????????????# #??????????????? | | ?????????????# #??????????????? | | ?????????????# #??????????????? | | ?????????????# #??????????????? | | ????########## #??????????????? | | ????# # #??????????????? | | ????# """ # #?????????##???? | | ????# """ # ##+### #???? | | ????# """ # #???? | | ????# + ? | | ????#!@s""" # #???? | | ????# """ k####+### #???? | | ????# s""" #????????#####???? | | ????# ss #????????????????? | | ????##########????????????????? | | ??????????????????????????????? | | ??????????????????????????????? | | ??????????????????????????????? | | ??????????????????????????????? | | ??????????????????????????????? | | | | | | | | | | | | | | | | | | | | | | | | | | | | | | | +----------------------------------------------------+ Best States ------------- Heat Dissipation 53 Energy Generation 14 Energy Capacity 265 Matter Stores 400 Matter Capacity 450 Sight Range 16 Robot Scan Range 14 Terrain Scan Density 10 Additional Mass Support 9 Armor Coverage 150 Evasion (%) 55 Recoil Reduction 4 Item Schematics ----------------- None Robot Schematics ------------------ None Fabricated ------------ Nothing Alien Tech Used ----------------- None Achievements -------------- None Challenges ------------ None Game ------ Seed PointGravitonCalibrator Manual? 0 Play Time 00:24:53 Cumulative 33.0 hours Start 2024.07.08 @ 17:39:10 End 2024.07.08 @ 18:34:02 Sessions 1 Manual Loads 0 Difficulty Rogue Special Mode None Game No. 104 Rogue 104 Adventurer 0 Explorer 0 Win Type - Total 0 Types 0/0/0/0/0/0/0/0/0 Lore% 18 Gallery% 33 Achievement% 23 Wizard Run 0 Options --------- Layout 0 ASCII 0 Keyboard 0 Movement Arrows Keybinds 0 Fullscreen 1 Font 12/Smallcaps Map View 38x28 Zoom Use 99% Tactical HUD 1 Map Filters NONE Filters NONE Steam SD RUN: 4b99136a-9454-4243-acce-c31411ee1f38